{"text_format":"3","workbook":"xlsx","n_sheets":4,"sheets":["Milepæle","Oversigt","Om","Diagramdata"],"not_rendered":{"charts":1,"defined_names":2},"read":"whole","date_system":"1900"}

{"sheet":"Milepæle","index":0,"n_rows":27,"n_cols":5,"rows_kept":27}
["Opret en oversigt ved at indtaste vigtige milepæle og aktiviteter i regnearket.\nTitlen på dette regneark vises i celle C1. \nOplysninger om, hvordan du bruger dette regneark, såsom en vejledning for skærmlæsere, er i regnearket Om.\nDu kan fortsætte med at navigere i kolonne A for at få flere instruktioner.",null,"Milepæle"]
["Tabeloverskrifter vises i celle C2 til E2. Brug Sortér og filtrer til at sortere eller finde specifikke poster.\nAngiv milepæle med datoer, og angiv en placering til oprettelse af milepælen i den tabel, der starter i celle C3.\nKolonne B er blevet skjult. Diagrammet genereres fra disse data ved hjælp af et rullepanel for at få vist segmenter af tidslinjen. Kolonne B hjælper med at afgøre, hvilke milepæle der skal oprettes, når rullepanelet forøges. \nAdvarsel: Hvis indholdet i kolonne B slettes eller ændres, kan integriteten af den kortlægning, der er indbygget i projektmappen, forstyrres.","Antal","Placering","Dato","Milepæl"]
["Angiv placering for oprettelse af dato og milepæl i celle C1. Angiv et positivt tal mellem 1 og 3 for at oprette milepælen over tidslinjen. Angiv et negativt tal mellem 1 og 3 for at oprette milepælen over tidslinjen.\nAngiv dato og milepæl eller aktivitet i kolonne D og E i tabellen.\nGentag dette mønster for hver ny række i tabellen til højre.\nEksempeldata er angivet i række 3 til 26. Rediger eller slet eksempelindhold for at oprette din egen oversigt.\nFortsæt til celle A27 for at få den næste instruktion.",{"$f":"ROW($A1)","v":1},1,{"$f":"TODAY()","v":"2018-06-27"},"Start"]
[null,{"$f":"ROW($A2)","v":2},-2,{"$f":"D3+10","v":"2018-07-07"},"Problemanalyse\naktivitet 1"]
[null,3,1,{"$f":"D4+20","v":"2018-07-27"},"Udvikl forretningscase\naktivitet 1\naktivitet 2"]
[null,4,-1,{"$f":"D5+30","v":"2018-08-26"},"Gennemse præsentationen"]
[null,5,{"v":-0.5,"d":"-1"},{"$f":"D6+40","v":"2018-10-05"},"Ledelsens igangsættelse\naktivitet 1\naktivitet 2"]
[null,6,2,{"$f":"D7+50","v":"2018-11-24"},"Ledelsens rettelser\naktivitet 1\naktivitet 2\naktivitet 3"]
[null,7,{"v":0.5,"d":"1"},{"$f":"D8+60","v":"2019-01-23"},"Interessentkøb"]
[null,8,-1,{"$f":"D9+70","v":"2019-04-03"},"Valg af ressourcer"]
[null,9,{"v":0.5,"d":"1"},{"$f":"D10+80","v":"2019-06-22"},"Teamoprettelse\naktivitet 1 "]
[null,10,-2,{"$f":"D11+90","v":"2019-09-20"},"Teamets igangsættelse\naktivitet 1 \naktivitet 2\naktivitet 3\naktivitet 4"]
[null,11,3,{"$f":"D12+100","v":"2019-12-29"},"Start dataindsamling"]
[null,12,-1,{"$f":"D13+90","v":"2020-03-28"},"Dataanalyse"]
[null,13,1,{"$f":"D14+80","v":"2020-06-16"},"Design"]
[null,14,1,{"$f":"D15+70","v":"2020-08-25"},"Effektiv konceptafprøvning"]
[null,15,-3,{"$f":"D16+60","v":"2020-10-24"},"Test og analyse"]
[null,16,-2,{"$f":"D17+50","v":"2020-12-13"},"Designændring"]
[null,17,2,{"$f":"D18+40","v":"2021-01-22"},"Genudvikling"]
[null,18,-1,{"$f":"D19+30","v":"2021-02-21"},"Test og analyse"]
[null,19,1,{"$f":"D20+20","v":"2021-03-13"},"Designændring"]
[null,20,-3,{"$f":"D21+10","v":"2021-03-23"},"Genudvikling"]
[null,21,2,{"$f":"D22+20","v":"2021-04-12"},"Sidste test"]
[null,22,1,{"$f":"D23+30","v":"2021-05-12"},"Betatest"]
[null,23,-3,{"$f":"D24+40","v":"2021-06-21"},"Gennemse"]
[null,24,-2,{"$f":"D25+50","v":"2021-08-10"},"Udgiv til marketing"]
["Hvis du vil føje flere rækker til tabellen Oversigt over milepæle, skal du bare indsætte en ny række over denne.\nDer er ikke flere instruktioner i dette regneark.",null,"Hvis du vil tilføje flere milepæle, skal du indsætte nye rækker over denne linje."]

{"sheet":"Oversigt","index":1,"n_rows":3,"n_cols":4,"rows_kept":3}
["Der er et diagram, der viser milepæle fra regnearket Milepæle, i dette regneark. \nÅr er angivet i celle B2, C2 og D2 og har typografien Overskrift 3.\n10 milepæle oprettes ad gangen. \nBrug rullepanelet i cellerne B4 til D4 til at navigere gennem oversigten.\nÅrene i tidslinjen vises i celle B3 til D3.\nDer er ikke flere instruktioner i dette regneark."]
[]
[null,{"$f":"Diagramdata!B20","v":2018},{"$f":"Diagramdata!B21","v":""},{"$f":"Diagramdata!B22","v":2019}]

{"sheet":"Om","index":2,"n_rows":5,"n_cols":1,"rows_kept":5}
["Om denne projektmappe"]
["Vejledning til skærmlæsere"]
["Denne projektmappe indeholder fire regneark. \n\nMilepæle\nOversigt\nOm\nDiagramdata (skjult)\n\nInstruktionerne til hvert regneark vises i kolonne A fra celle A1 i hvert regneark. Instruktionerne er skrevet med skjult tekst. Hvert trin hjælper dig gennem oplysningerne i den pågældende række. Hvert efterfølgende trin fortsætter i celle A2, A3 osv., medmindre andet direkte angives. Vejledningsteksten kan f.eks. være \"fortsæt til celle A6\" for at gå til næste trin. \n\nSkjult tekst udskrives ikke.\n\nFor at fjerne disse instruktioner fra et regneark skal du blot slette kolonne A.\n"]
["Denne oversigt bruger placeringer til at registrere milepæle og aktiviteter. Placeringer kan bruges til at tilføre mere betydning til en milepæl eller aktivitet. Juster blot værdierne i henhold til dine præferencer. Milepæl/aktivitet 3 kunne f.eks. have større betydning end milepæl/aktivitet 2. Hvis det skal angives i diagrammet, skal du blot gøre værdien for milepæl/aktivitet 3 højere end milepæl/aktivitet 2.  \n"]
["Dette er den sidste instruktion i dette regneark."]

{"sheet":"Diagramdata","index":3,"n_rows":26,"n_cols":4,"rows_kept":26,"hidden":true}
["Der er data til at oprette dynamiske diagrammer i regnearket. Slet ikke dette regneark.\nHvis dette regneark slettes, kan det forringe de dynamiske egenskaber i projektmappen.","Slet ikke dette regneark."]
["Titlen på tabellen er i celle B2.","Dynamisk indhold i diagrammet"]
["Tabeloverskrifter vises i celle B3 til D3. \nDenne tabel opdateres automatisk baseret på det indhold, der er angivet i regnearket Milepæle.\nAdvarsel: Hvis indhold i denne tabel ændres eller slettes, kan det forringe den dynamiske opdatering i diagrammet Oversigt i regnearket Oversigt.\nFortsæt til celle A15 for at få den næste instruktion.","Dato","Begivenheder","Placering"]
[null,{"$f":"IFERROR(IF(LEN(Milepæle!D3)=0,\"\",INDEX(Oversigtovermilepæle[],Milepæle!$B3+$B$17,3)),\"\")","v":"2018-06-27"},{"$f":"IFERROR(IF(LEN(Milepæle!E3)=0,\"\",INDEX(Oversigtovermilepæle[],Milepæle!$B3+$B$17,4)),\"\")","v":"Start"},{"$f":"IFERROR(INDEX(Oversigtovermilepæle[],Milepæle!$B3+$B$17,2),\"\")","v":1}]
[null,{"$f":"IFERROR(IF(LEN(Milepæle!D4)=0,\"\",INDEX(Oversigtovermilepæle[],Milepæle!$B4+$B$17,3)),\"\")","v":"2018-07-07"},{"$f":"IFERROR(IF(LEN(Milepæle!E4)=0,\"\",INDEX(Oversigtovermilepæle[],Milepæle!$B4+$B$17,4)),\"\")","v":"Problemanalyse\naktivitet 1"},{"$f":"IFERROR(INDEX(Oversigtovermilepæle[],Milepæle!$B4+$B$17,2),\"\")","v":-2}]
[null,{"$f":"IFERROR(IF(LEN(Milepæle!D5)=0,\"\",INDEX(Oversigtovermilepæle[],Milepæle!$B5+$B$17,3)),\"\")","v":"2018-07-27"},{"$f":"IFERROR(IF(LEN(Milepæle!E5)=0,\"\",INDEX(Oversigtovermilepæle[],Milepæle!$B5+$B$17,4)),\"\")","v":"Udvikl forretningscase\naktivitet 1\naktivitet 2"},{"$f":"IFERROR(INDEX(Oversigtovermilepæle[],Milepæle!$B5+$B$17,2),\"\")","v":1}]
[null,{"$f":"IFERROR(IF(LEN(Milepæle!D6)=0,\"\",INDEX(Oversigtovermilepæle[],Milepæle!$B6+$B$17,3)),\"\")","v":"2018-08-26"},{"$f":"IFERROR(IF(LEN(Milepæle!E6)=0,\"\",INDEX(Oversigtovermilepæle[],Milepæle!$B6+$B$17,4)),\"\")","v":"Gennemse præsentationen"},{"$f":"IFERROR(INDEX(Oversigtovermilepæle[],Milepæle!$B6+$B$17,2),\"\")","v":-1}]
[null,{"$f":"IFERROR(IF(LEN(Milepæle!D7)=0,\"\",INDEX(Oversigtovermilepæle[],Milepæle!$B7+$B$17,3)),\"\")","v":"2018-10-05"},{"$f":"IFERROR(IF(LEN(Milepæle!E7)=0,\"\",INDEX(Oversigtovermilepæle[],Milepæle!$B7+$B$17,4)),\"\")","v":"Ledelsens igangsættelse\naktivitet 1\naktivitet 2"},{"$f":"IFERROR(INDEX(Oversigtovermilepæle[],Milepæle!$B7+$B$17,2),\"\")","v":-0.5}]
[null,{"$f":"IFERROR(IF(LEN(Milepæle!D8)=0,\"\",INDEX(Oversigtovermilepæle[],Milepæle!$B8+$B$17,3)),\"\")","v":"2018-11-24"},{"$f":"IFERROR(IF(LEN(Milepæle!E8)=0,\"\",INDEX(Oversigtovermilepæle[],Milepæle!$B8+$B$17,4)),\"\")","v":"Ledelsens rettelser\naktivitet 1\naktivitet 2\naktivitet 3"},{"$f":"IFERROR(INDEX(Oversigtovermilepæle[],Milepæle!$B8+$B$17,2),\"\")","v":2}]
[null,{"$f":"IFERROR(IF(LEN(Milepæle!D9)=0,\"\",INDEX(Oversigtovermilepæle[],Milepæle!$B9+$B$17,3)),\"\")","v":"2019-01-23"},{"$f":"IFERROR(IF(LEN(Milepæle!E9)=0,\"\",INDEX(Oversigtovermilepæle[],Milepæle!$B9+$B$17,4)),\"\")","v":"Interessentkøb"},{"$f":"IFERROR(INDEX(Oversigtovermilepæle[],Milepæle!$B9+$B$17,2),\"\")","v":0.5}]
[null,{"$f":"IFERROR(IF(LEN(Milepæle!D10)=0,\"\",INDEX(Oversigtovermilepæle[],Milepæle!$B10+$B$17,3)),\"\")","v":"2019-04-03"},{"$f":"IFERROR(IF(LEN(Milepæle!E10)=0,\"\",INDEX(Oversigtovermilepæle[],Milepæle!$B10+$B$17,4)),\"\")","v":"Valg af ressourcer"},{"$f":"IFERROR(INDEX(Oversigtovermilepæle[],Milepæle!$B10+$B$17,2),\"\")","v":-1}]
[null,{"$f":"IFERROR(IF(LEN(Milepæle!D11)=0,\"\",INDEX(Oversigtovermilepæle[],Milepæle!$B11+$B$17,3)),\"\")","v":"2019-06-22"},{"$f":"IFERROR(IF(LEN(Milepæle!E11)=0,\"\",INDEX(Oversigtovermilepæle[],Milepæle!$B11+$B$17,4)),\"\")","v":"Teamoprettelse\naktivitet 1 "},{"$f":"IFERROR(INDEX(Oversigtovermilepæle[],Milepæle!$B11+$B$17,2),\"\")","v":0.5}]
[null,{"$f":"IFERROR(IF(LEN(Milepæle!D12)=0,\"\",INDEX(Oversigtovermilepæle[],Milepæle!$B12+$B$17,3)),\"\")","v":"2019-09-20"},{"$f":"IFERROR(IF(LEN(Milepæle!E12)=0,\"\",INDEX(Oversigtovermilepæle[],Milepæle!$B12+$B$17,4)),\"\")","v":"Teamets igangsættelse\naktivitet 1 \naktivitet 2\naktivitet 3\naktivitet 4"},{"$f":"IFERROR(INDEX(Oversigtovermilepæle[],Milepæle!$B12+$B$17,2),\"\")","v":-2}]
[]
["Muligheden for at rulle gennem oversigten udføres ved hjælp af en trinvis værdi. Titlen på denne mulighed er i celle B15.\nDer er en tabel med et sidehoved og en enkelt værdi i celle B16 og B17.\nFortsæt til celle A19 for at få den næste instruktion.","Rullefunktion"]
[null,"Rækkeforøgelse"]
[null,0]
[]
["Diagrammet Oversigt afbilder årene for tidslinjen. For at gøre dette skal årene hentes fra listen Milepæl. \nTitlen på denne sektion er \"År\" i celle B19. \nVærdierne for årene genereres automatisk i cellerne C20 til C22.\nAdvarsel: Hvis disse år slettes eller redigeres, kan det ændre nøjagtigheden for diagrammet Oversigt.\nFortsæt til celle A24 for at få den næste instruktion.","År"]
[null,{"$f":"IFERROR(YEAR(B4),\"\")","v":2018},"< – året, hvor oversigten starter"]
[null,{"$f":"IFERROR(IF(YEAR($B$9)=$B$20,\"\",YEAR($B$9)),\"\")","v":""},"< – året i midten af oversigten. Bemærk, at denne position kan være tom, hvis det er samme år som det år, hvor oversigten starter"]
[null,{"$f":"IFERROR(IF(YEAR($B$13)=$B$20,\"\",YEAR($B$13)),\"\")","v":2019},"< – året, hvor oversigten slutter. Bemærk, at denne position kan være tom, hvis det er samme år som det år, hvor oversigten starter"]
[]
["Kransmarkører i diagrammet Oversigt indeholder datoer fra det dynamiske indhold i regnearket. Datoerne er Første dato i celle C24, Midterste dato i celle C25 og Sidste dato i celle C26.\nDer er ikke flere instruktioner i dette regneark.","Første dato",{"$f":"B4","v":"2018-06-27"}]
[null,"Midterste dato",{"$f":"B9","v":"2018-11-24"}]
[null,"Sidste dato",{"$f":"B13","v":"2019-09-20"}]